[Event "January 2 Late 2024"]
[Site "https://www.chess.com"]
[Date "2024.01.02"]
[Round "5"]
[White "Arlo2024"]
[Black "Jimenez Almeida, Luis David"]
[Result "0-1"]
[Board "140"]
[TimeControl "180+1"]
[BlackFideId "22242244"]
[WhiteElo "2239"]
[BlackElo "2514"]
[BlackTeam "ESP"]
[WhiteClock "0:00:00"]
[BlackClock "0:00:11"]

1. e4 {[%clk 0:03:00]}  c5 {[%clk 0:02:55]} 2. Nc3 {[%clk 0:03:00]}  e6 {[%clk 0:02:52]} 3. g3 {[%clk 0:03:01]}  d5 {[%clk 0:02:52]} 4. exd5 {[%clk 0:03:01]}  exd5 {[%clk 0:02:52]} 5. Bg2 {[%clk 0:03:01]}  Nf6 {[%clk 0:02:52]} 6. Nge2 {[%clk 0:03:00]}  d4 {[%clk 0:02:45]} 7. Ne4 {[%clk 0:03:00]}  Be7 {[%clk 0:02:40]} 8. O-O {[%clk 0:02:57]}  O-O {[%clk 0:02:39]} 9. c3 {[%clk 0:02:52]}  Nc6 {[%clk 0:02:36]} 10. cxd4 {[%clk 0:02:51]}  cxd4 {[%clk 0:02:36]} 11. d3 {[%clk 0:02:45]}  Bg4 {[%clk 0:02:34]} 12. h3 {[%clk 0:02:42]}  Bh5 {[%clk 0:02:23]} 13. g4 {[%clk 0:02:37]}  Bg6 {[%clk 0:02:23]} 14. N2g3 {[%clk 0:02:36]}  Re8 {[%clk 0:02:19]} 15. f4 {[%clk 0:02:36]}  Bxe4 {[%clk 0:02:17]} 16. Nxe4 {[%clk 0:02:34]}  Nd5 {[%clk 0:02:16]} 17. Bd2 {[%clk 0:02:25]}  Qb6 {[%clk 0:02:01]} 18. Qb3 {[%clk 0:02:04]}  Ne3 {[%clk 0:01:44]} 19. Qxb6 {[%clk 0:01:46]}  axb6 {[%clk 0:01:45]} 20. Bxe3 {[%clk 0:01:34]}  dxe3 {[%clk 0:01:46]} 21. Rfe1 {[%clk 0:01:33]}  Nd4 {[%clk 0:01:45]} 22. Rab1 {[%clk 0:01:18]}  e2 {[%clk 0:01:37]} 23. Nc3 {[%clk 0:01:13]}  Bh4 {[%clk 0:01:35]} 24. Be4 {[%clk 0:00:59]}  Bxe1 {[%clk 0:01:33]} 25. Rxe1 {[%clk 0:01:00]}  Ra7 {[%clk 0:01:19]} 26. Nxe2 {[%clk 0:00:58]}  Nxe2+ {[%clk 0:01:17]} 27. Rxe2 {[%clk 0:00:59]}  g6 {[%clk 0:01:16]} 28. a3 {[%clk 0:00:55]}  Kg7 {[%clk 0:01:14]} 29. f5 {[%clk 0:00:54]}  gxf5 {[%clk 0:01:12]} 30. gxf5 {[%clk 0:00:55]}  Kf6 {[%clk 0:01:13]} 31. Rc2 {[%clk 0:00:52]}  Re7 {[%clk 0:01:04]} 32. Rc8 {[%clk 0:00:47]}  Ra5 {[%clk 0:01:03]} 33. Kf2 {[%clk 0:00:35]}  Rc5 {[%clk 0:01:00]} 34. Rh8 {[%clk 0:00:28]}  Kg7 {[%clk 0:00:49]} 35. f6+ {[%clk 0:00:27]}  Kxf6 {[%clk 0:00:49]} 36. Rxh7 {[%clk 0:00:27]}  Rc2+ {[%clk 0:00:49]} 37. Ke3 {[%clk 0:00:24]}  Rxb2 {[%clk 0:00:50]} 38. h4 {[%clk 0:00:21]}  Rh2 {[%clk 0:00:37]} 39. h5 {[%clk 0:00:18]}  Re5 {[%clk 0:00:20]} 40. Rh6+ {[%clk 0:00:15]}  Kg7 {[%clk 0:00:19]} 41. Rxb6 {[%clk 0:00:15]}  Rhxh5 {[%clk 0:00:16]} 42. Rxb7 {[%clk 0:00:14]}  Ra5 {[%clk 0:00:14]} 43. Kf4 {[%clk 0:00:04]}  Rxa3 {[%clk 0:00:12]} 44. Bd5 {[%clk 0:00:00]}  Rxd5 {[%clk 0:00:11]} 0-1

[Event "January 2 Late 2024"]
[Site "https://www.chess.com"]
[Date "2024.01.02"]
[Round "5"]
[White "Yushko, Olga"]
[Black "Shapiro, Viktor"]
[Result "0-1"]
[Board "142"]
[TimeControl "180+1"]
[WhiteFideId "14114500"]
[BlackFideId "4175700"]
[WhiteElo "2207"]
[BlackElo "2513"]
[WhiteTeam "UKR"]
[BlackTeam "RUS"]
[WhiteClock "0:00:08"]
[BlackClock "0:00:16"]

1. d4 {[%clk 0:02:59]}  Nf6 {[%clk 0:02:59]} 2. c4 {[%clk 0:02:59]}  c5 {[%clk 0:03:00]} 3. d5 {[%clk 0:03:00]}  e6 {[%clk 0:03:00]} 4. Nc3 {[%clk 0:03:00]}  exd5 {[%clk 0:03:01]} 5. cxd5 {[%clk 0:03:00]}  d6 {[%clk 0:03:02]} 6. e4 {[%clk 0:03:00]}  g6 {[%clk 0:03:02]} 7. Nf3 {[%clk 0:02:59]}  Bg7 {[%clk 0:03:03]} 8. Bd3 {[%clk 0:03:00]}  O-O {[%clk 0:03:03]} 9. h3 {[%clk 0:02:59]}  b5 {[%clk 0:03:03]} 10. Nxb5 {[%clk 0:02:52]}  Nxe4 {[%clk 0:03:02]} 11. Bxe4 {[%clk 0:02:52]}  Re8 {[%clk 0:03:02]} 12. Nd2 {[%clk 0:02:42]}  f5 {[%clk 0:02:50]} 13. O-O {[%clk 0:02:27]}  fxe4 {[%clk 0:02:44]} 14. Nc4 {[%clk 0:02:27]}  Ba6 {[%clk 0:02:44]} 15. Nbxd6 {[%clk 0:02:24]}  Rf8 {[%clk 0:02:36]} 16. Be3 {[%clk 0:02:11]}  Nd7 {[%clk 0:02:34]} 17. Qa4 {[%clk 0:02:09]}  Bxc4 {[%clk 0:02:31]} 18. Qxc4 {[%clk 0:02:02]}  Bxb2 {[%clk 0:02:14]} 19. Rab1 {[%clk 0:02:01]}  Ne5 {[%clk 0:02:08]} 20. Qxe4 {[%clk 0:01:47]}  Qxd6 {[%clk 0:01:59]} 21. Rxb2 {[%clk 0:01:47]}  Rae8 {[%clk 0:01:59]} 22. Qc2 {[%clk 0:01:17]}  Qxd5 {[%clk 0:01:46]} 23. Rd1 {[%clk 0:01:15]}  Qc4 {[%clk 0:01:44]} 24. Bxc5 {[%clk 0:01:06]}  Qxc2 {[%clk 0:01:24]} 25. Rxc2 {[%clk 0:01:05]}  Rc8 {[%clk 0:01:23]} 26. Bxf8 {[%clk 0:00:54]}  Rxc2 {[%clk 0:01:23]} 27. Bd6 {[%clk 0:00:48]}  Nc4 {[%clk 0:01:20]} 28. a3 {[%clk 0:00:44]}  Ra2 {[%clk 0:01:09]} 29. Bc5 {[%clk 0:00:43]}  a5 {[%clk 0:01:08]} 30. Rd8+ {[%clk 0:00:41]}  Kf7 {[%clk 0:01:08]} 31. Ra8 {[%clk 0:00:36]}  h5 {[%clk 0:01:02]} 32. Ra6 {[%clk 0:00:32]}  h4 {[%clk 0:00:53]} 33. Ra7+ {[%clk 0:00:15]}  Ke6 {[%clk 0:00:53]} 34. Ra6+ {[%clk 0:00:14]}  Kf5 {[%clk 0:00:50]} 35. Be7 {[%clk 0:00:13]}  Ra1+ {[%clk 0:00:47]} 36. Kh2 {[%clk 0:00:13]}  g5 {[%clk 0:00:35]} 37. Rc6 {[%clk 0:00:13]}  Nd2 {[%clk 0:00:34]} 38. Rc5+ {[%clk 0:00:13]}  Ke6 {[%clk 0:00:32]} 39. g3 {[%clk 0:00:12]}  hxg3+ {[%clk 0:00:27]} 40. Kxg3 {[%clk 0:00:12]}  Ne4+ {[%clk 0:00:27]} 41. Kg4 {[%clk 0:00:12]}  Nxc5 {[%clk 0:00:24]} 42. Bxc5 {[%clk 0:00:12]}  Rg1+ {[%clk 0:00:18]} 43. Kf3 {[%clk 0:00:12]}  Kf5 {[%clk 0:00:17]} 44. Bd6 {[%clk 0:00:11]}  a4 {[%clk 0:00:17]} 45. Bb4 {[%clk 0:00:11]}  Rb1 {[%clk 0:00:16]} 46. Bc5 {[%clk 0:00:11]}  Rb3+ {[%clk 0:00:17]} 47. Kg2 {[%clk 0:00:11]}  Ke4 {[%clk 0:00:17]} 48. Be7 {[%clk 0:00:11]}  Kf5 {[%clk 0:00:18]} 49. Bd6 {[%clk 0:00:11]}  Kg6 {[%clk 0:00:18]} 50. Be7 {[%clk 0:00:12]}  Kh5 {[%clk 0:00:18]} 51. Bd6 {[%clk 0:00:12]}  Rd3 {[%clk 0:00:18]} 52. Bc5 {[%clk 0:00:12]}  g4 {[%clk 0:00:18]} 53. hxg4+ {[%clk 0:00:12]}  Kxg4 {[%clk 0:00:18]} 54. Be7 {[%clk 0:00:12]}  Kf5 {[%clk 0:00:19]} 55. Bb4 {[%clk 0:00:12]}  Ke4 {[%clk 0:00:19]} 56. Be7 {[%clk 0:00:11]}  Kd5 {[%clk 0:00:19]} 57. f3 {[%clk 0:00:11]}  Ke6 {[%clk 0:00:18]} 58. Bb4 {[%clk 0:00:11]}  Kf5 {[%clk 0:00:19]} 59. Bc5 {[%clk 0:00:11]}  Kf4 {[%clk 0:00:18]} 60. Bb4 {[%clk 0:00:11]}  Ke3 {[%clk 0:00:14]} 61. Kg3 {[%clk 0:00:11]}  Ke2 {[%clk 0:00:15]} 62. Kg2 {[%clk 0:00:11]}  Rxf3 {[%clk 0:00:15]} 63. Bc5 {[%clk 0:00:11]}  Rc3 {[%clk 0:00:15]} 64. Bd6 {[%clk 0:00:11]}  Rc4 {[%clk 0:00:15]} 65. Be7 {[%clk 0:00:11]}  Kd3 {[%clk 0:00:15]} 66. Kf3 {[%clk 0:00:11]}  Kc2 {[%clk 0:00:16]} 67. Ke2 {[%clk 0:00:12]}  Re4+ {[%clk 0:00:16]} 68. Kf3 {[%clk 0:00:08]}  Rxe7 {[%clk 0:00:16]} 0-1

[Event "January 2 Late 2024"]
[Site "https://www.chess.com"]
[Date "2024.01.02"]
[Round "5"]
[White "Gabdushev, Ruslan"]
[Black "Kovacevic, Radmila"]
[Result "1/2-1/2"]
[Board "143"]
[TimeControl "180+1"]
[WhiteFideId "4137833"]
[BlackFideId "933171"]
[WhiteElo "2432"]
[BlackElo "2177"]
[WhiteTeam "RUS"]
[BlackTeam "SRB"]
[WhiteClock "0:00:26"]
[BlackClock "0:00:12"]

1. c4 {[%clk 0:02:59]}  e5 {[%clk 0:02:58]} 2. g3 {[%clk 0:02:58]}  Nc6 {[%clk 0:02:58]} 3. Bg2 {[%clk 0:02:58]}  f5 {[%clk 0:02:57]} 4. Nc3 {[%clk 0:02:57]}  Nf6 {[%clk 0:02:57]} 5. d3 {[%clk 0:02:56]}  a6 {[%clk 0:02:53]} 6. e3 {[%clk 0:02:51]}  Bb4 {[%clk 0:02:48]} 7. Ne2 {[%clk 0:02:50]}  O-O {[%clk 0:02:47]} 8. a3 {[%clk 0:02:49]}  Be7 {[%clk 0:02:41]} 9. O-O {[%clk 0:02:46]}  d6 {[%clk 0:02:40]} 10. Nd5 {[%clk 0:02:43]}  Nxd5 {[%clk 0:02:34]} 11. cxd5 {[%clk 0:02:42]}  Nb8 {[%clk 0:02:34]} 12. Qc2 {[%clk 0:02:38]}  Nd7 {[%clk 0:02:32]} 13. Bd2 {[%clk 0:02:37]}  Nf6 {[%clk 0:02:32]} 14. Rac1 {[%clk 0:02:36]}  Bd7 {[%clk 0:02:18]} 15. f4 {[%clk 0:02:23]}  Rc8 {[%clk 0:02:02]} 16. fxe5 {[%clk 0:02:17]}  dxe5 {[%clk 0:02:03]} 17. Qb3 {[%clk 0:02:17]}  Bd6 {[%clk 0:01:59]} 18. Rc2 {[%clk 0:02:08]}  b6 {[%clk 0:01:56]} 19. Bb4 {[%clk 0:01:41]}  Qe8 {[%clk 0:01:50]} 20. Rfc1 {[%clk 0:01:37]}  Ba4 {[%clk 0:01:49]} 21. Qc3 {[%clk 0:01:34]}  Bxb4 {[%clk 0:01:41]} 22. Qxb4 {[%clk 0:01:32]}  a5 {[%clk 0:01:37]} 23. Qc4 {[%clk 0:01:23]}  Bxc2 {[%clk 0:01:34]} 24. Rxc2 {[%clk 0:01:23]}  Qf7 {[%clk 0:01:31]} 25. Nc3 {[%clk 0:01:13]}  Rfd8 {[%clk 0:01:24]} 26. Rf2 {[%clk 0:01:13]}  Ng4 {[%clk 0:01:19]} 27. Rf3 {[%clk 0:01:13]}  g6 {[%clk 0:01:10]} 28. e4 {[%clk 0:01:06]}  c6 {[%clk 0:01:05]} 29. dxc6 {[%clk 0:01:00]}  Qxc4 {[%clk 0:01:03]} 30. dxc4 {[%clk 0:01:01]}  fxe4 {[%clk 0:00:58]} 31. Rf1 {[%clk 0:00:54]}  Ne3 {[%clk 0:00:52]} 32. Re1 {[%clk 0:00:54]}  Nxg2 {[%clk 0:00:51]} 33. Kxg2 {[%clk 0:00:55]}  Rd2+ {[%clk 0:00:47]} 34. Kh3 {[%clk 0:00:49]}  Rxc6 {[%clk 0:00:45]} 35. Rxe4 {[%clk 0:00:45]}  Rxb2 {[%clk 0:00:43]} 36. Nd5 {[%clk 0:00:39]}  Kg7 {[%clk 0:00:39]} 37. Rxe5 {[%clk 0:00:37]}  Rxc4 {[%clk 0:00:35]} 38. Re7+ {[%clk 0:00:36]}  Kf8 {[%clk 0:00:33]} 39. Rxh7 {[%clk 0:00:35]}  Rcc2 {[%clk 0:00:32]} 40. Rb7 {[%clk 0:00:31]}  Rxh2+ {[%clk 0:00:32]} 41. Kg4 {[%clk 0:00:31]}  Rhd2 {[%clk 0:00:31]} 42. Nf4 {[%clk 0:00:31]}  Rd6 {[%clk 0:00:27]} 43. a4 {[%clk 0:00:30]}  Rb4 {[%clk 0:00:27]} 44. Kg5 {[%clk 0:00:30]}  Rxa4 {[%clk 0:00:25]} 45. Nxg6+ {[%clk 0:00:30]}  Rxg6+ {[%clk 0:00:24]} 46. Kxg6 {[%clk 0:00:29]}  Rg4+ {[%clk 0:00:21]} 47. Kf6 {[%clk 0:00:28]}  Kg8 {[%clk 0:00:14]} 48. Rxb6 {[%clk 0:00:27]}  Rxg3 {[%clk 0:00:14]} 49. Ra6 {[%clk 0:00:27]}  Ra3 {[%clk 0:00:13]} 50. Kg6 {[%clk 0:00:26]}  Rg3+ {[%clk 0:00:12]} 51. Kf6 {[%clk 0:00:26]}  Rf3+ {[%clk 0:00:12]} 52. Kg6 {[%clk 0:00:26]}  Rg3+ {[%clk 0:00:12]} 53. Kf6 {[%clk 0:00:26]} 1/2-1/2

[Event "January 2 Late 2024"]
[Site "https://www.chess.com"]
[Date "2024.01.02"]
[Round "5"]
[White "Ghosh, Chanchal Kumer"]
[Black "Chiu, Isaac"]
[Result "1-0"]
[Board "144"]
[TimeControl "180+1"]
[WhiteFideId "10201858"]
[BlackFideId "30900654"]
[WhiteElo "2122"]
[BlackElo "2730"]
[WhiteTeam "BAN"]
[BlackTeam "USA"]
[WhiteClock "0:00:43"]
[BlackClock "0:00:15"]

1. e4 {[%clk 0:03:00]}  e6 {[%clk 0:03:00]} 2. Nf3 {[%clk 0:03:01]}  d5 {[%clk 0:03:00]} 3. Nc3 {[%clk 0:03:01]}  Nf6 {[%clk 0:03:00]} 4. e5 {[%clk 0:03:01]}  Nfd7 {[%clk 0:03:00]} 5. d4 {[%clk 0:03:02]}  c5 {[%clk 0:03:01]} 6. Bg5 {[%clk 0:03:02]}  Qb6 {[%clk 0:03:00]} 7. dxc5 {[%clk 0:03:03]}  Bxc5 {[%clk 0:03:00]} 8. Qd2 {[%clk 0:03:03]}  Nc6 {[%clk 0:02:43]} 9. Bb5 {[%clk 0:03:02]}  a6 {[%clk 0:02:37]} 10. Bxc6 {[%clk 0:03:01]}  Qxc6 {[%clk 0:02:36]} 11. Ne2 {[%clk 0:02:59]}  b5 {[%clk 0:02:27]} 12. c3 {[%clk 0:02:59]}  a5 {[%clk 0:02:24]} 13. O-O {[%clk 0:02:59]}  Ba6 {[%clk 0:02:17]} 14. Rfe1 {[%clk 0:02:58]}  O-O {[%clk 0:02:15]} 15. Ng3 {[%clk 0:02:51]}  Kh8 {[%clk 0:02:03]} 16. Nh5 {[%clk 0:02:38]}  Rg8 {[%clk 0:02:03]} 17. Qf4 {[%clk 0:02:36]}  Raf8 {[%clk 0:02:00]} 18. Qh4 {[%clk 0:02:33]}  b4 {[%clk 0:01:47]} 19. Bd2 {[%clk 0:02:27]}  Bd3 {[%clk 0:01:44]} 20. Ng5 {[%clk 0:02:21]}  Be7 {[%clk 0:01:18]} 21. Nf4 {[%clk 0:02:14]}  Bf5 {[%clk 0:01:03]} 22. g4 {[%clk 0:02:11]}  Bxg5 {[%clk 0:01:02]} 23. Qxg5 {[%clk 0:02:12]}  Bg6 {[%clk 0:01:02]} 24. h4 {[%clk 0:01:58]}  bxc3 {[%clk 0:01:00]} 25. Bxc3 {[%clk 0:01:56]}  d4 {[%clk 0:00:52]} 26. Bxd4 {[%clk 0:01:53]}  Qf3 {[%clk 0:00:52]} 27. Re3 {[%clk 0:01:44]}  Qb7 {[%clk 0:00:52]} 28. h5 {[%clk 0:01:42]}  Be4 {[%clk 0:00:52]} 29. Qe7 {[%clk 0:01:36]}  Bc6 {[%clk 0:00:47]} 30. h6 {[%clk 0:01:31]}  gxh6 {[%clk 0:00:42]} 31. Rg3 {[%clk 0:01:29]}  Qb4 {[%clk 0:00:35]} 32. Qxb4 {[%clk 0:01:01]}  axb4 {[%clk 0:00:36]} 33. Rc1 {[%clk 0:01:01]}  Ba8 {[%clk 0:00:27]} 34. Rc7 {[%clk 0:01:00]}  Rd8 {[%clk 0:00:24]} 35. Nh5 {[%clk 0:00:53]}  Nxe5 {[%clk 0:00:13]} 36. Bxe5+ {[%clk 0:00:48]}  f6 {[%clk 0:00:13]} 37. Bxf6+ {[%clk 0:00:48]}  Rg7 {[%clk 0:00:14]} 38. Bxg7+ {[%clk 0:00:44]}  Kg8 {[%clk 0:00:15]} 39. Nf6# {[%clk 0:00:43]} 1-0

[Event "January 2 Late 2024"]
[Site "https://www.chess.com"]
[Date "2024.01.02"]
[Round "5"]
[White "Esmeraldas Huachi, Anderson"]
[Black "Caspi, Israel"]
[Result "0-1"]
[Board "148"]
[TimeControl "180+1"]
[WhiteFideId "3616363"]
[BlackFideId "2807394"]
[WhiteElo "2398"]
[BlackElo "2617"]
[WhiteTeam "ECU"]
[BlackTeam "ISR"]
[WhiteClock "0:00:00"]
[BlackClock "0:00:34"]

1. d4 {[%clk 0:03:00]}  Nf6 {[%clk 0:02:58]} 2. c4 {[%clk 0:03:01]}  e6 {[%clk 0:02:57]} 3. Nc3 {[%clk 0:03:00]}  d5 {[%clk 0:02:56]} 4. Bg5 {[%clk 0:02:58]}  c6 {[%clk 0:02:50]} 5. e3 {[%clk 0:02:57]}  Bb4 {[%clk 0:02:50]} 6. Qa4 {[%clk 0:02:23]}  Qa5 {[%clk 0:02:34]} 7. Qxa5 {[%clk 0:02:22]}  Bxa5 {[%clk 0:02:35]} 8. Bxf6 {[%clk 0:02:13]}  gxf6 {[%clk 0:02:36]} 9. cxd5 {[%clk 0:02:13]}  cxd5 {[%clk 0:02:35]} 10. Rc1 {[%clk 0:02:09]}  Bd7 {[%clk 0:02:34]} 11. Nf3 {[%clk 0:02:08]}  Nc6 {[%clk 0:02:34]} 12. a3 {[%clk 0:02:05]}  Rc8 {[%clk 0:02:33]} 13. b4 {[%clk 0:02:04]}  Nxb4 {[%clk 0:02:20]} 14. axb4 {[%clk 0:02:05]}  Bxb4 {[%clk 0:02:21]} 15. Kd2 {[%clk 0:02:05]}  Ke7 {[%clk 0:02:21]} 16. Bd3 {[%clk 0:02:05]}  Rc7 {[%clk 0:02:17]} 17. Ng1 {[%clk 0:02:05]}  Rhc8 {[%clk 0:02:09]} 18. Ne2 {[%clk 0:02:05]}  a5 {[%clk 0:01:55]} 19. e4 {[%clk 0:01:45]}  dxe4 {[%clk 0:01:49]} 20. Bxe4 {[%clk 0:01:46]}  f5 {[%clk 0:01:49]} 21. Bb1 {[%clk 0:01:41]}  Bb5 {[%clk 0:01:27]} 22. Bd3 {[%clk 0:01:38]}  Bc6 {[%clk 0:01:27]} 23. Ke3 {[%clk 0:01:23]}  Bxg2 {[%clk 0:01:22]} 24. Rhg1 {[%clk 0:01:20]}  f4+ {[%clk 0:01:10]} 25. Nxf4 {[%clk 0:01:12]}  Bxc3 {[%clk 0:01:09]} 26. Nxg2 {[%clk 0:01:03]}  Bxd4+ {[%clk 0:01:08]} 27. Kd2 {[%clk 0:01:01]}  Bxf2 {[%clk 0:01:06]} 28. Rxc7+ {[%clk 0:01:00]}  Rxc7 {[%clk 0:01:07]} 29. Rf1 {[%clk 0:00:40]}  Bd4 {[%clk 0:01:06]} 30. Bxh7 {[%clk 0:00:33]}  f5 {[%clk 0:01:03]} 31. Bxf5 {[%clk 0:00:31]}  exf5 {[%clk 0:01:01]} 32. Rxf5 {[%clk 0:00:32]}  Rc5 {[%clk 0:00:47]} 33. Rxc5 {[%clk 0:00:30]}  Bxc5 {[%clk 0:00:47]} 34. Kd3 {[%clk 0:00:30]}  b5 {[%clk 0:00:46]} 35. h4 {[%clk 0:00:26]}  a4 {[%clk 0:00:45]} 36. Nf4 {[%clk 0:00:12]}  Kd6 {[%clk 0:00:43]} 37. Ne2 {[%clk 0:00:08]}  b4 {[%clk 0:00:42]} 38. Kc4 {[%clk 0:00:08]}  b3 {[%clk 0:00:37]} 39. Kc3 {[%clk 0:00:00]}  Kd5 {[%clk 0:00:34]} 0-1

[Event "January 2 Late 2024"]
[Site "https://www.chess.com"]
[Date "2024.01.02"]
[Round "5"]
[White "Sokolov, Andrei"]
[Black "Shuvalov, Evgenij"]
[Result "0-1"]
[Board "150"]
[TimeControl "180+1"]
[WhiteFideId "11600306"]
[BlackFideId "4187237"]
[WhiteElo "2361"]
[BlackElo "2501"]
[WhiteTeam "LAT"]
[BlackTeam "FID"]
[WhiteClock "0:00:03"]
[BlackClock "0:00:48"]

1. d4 {[%clk 0:03:00]}  Nf6 {[%clk 0:02:52]} 2. c4 {[%clk 0:03:00]}  g6 {[%clk 0:02:52]} 3. Nc3 {[%clk 0:02:58]}  d5 {[%clk 0:02:52]} 4. Bd2 {[%clk 0:02:58]}  dxc4 {[%clk 0:02:46]} 5. Qa4+ {[%clk 0:02:58]}  Nc6 {[%clk 0:02:44]} 6. Qxc4 {[%clk 0:02:57]}  Qxd4 {[%clk 0:02:43]} 7. e3 {[%clk 0:02:48]}  Qxc4 {[%clk 0:02:40]} 8. Bxc4 {[%clk 0:02:49]}  a6 {[%clk 0:02:35]} 9. O-O-O {[%clk 0:02:48]}  Bg7 {[%clk 0:02:33]} 10. e4 {[%clk 0:02:40]}  O-O {[%clk 0:02:31]} 11. f4 {[%clk 0:02:40]}  Bg4 {[%clk 0:02:23]} 12. Nf3 {[%clk 0:02:38]}  e6 {[%clk 0:02:22]} 13. h3 {[%clk 0:02:27]}  Bxf3 {[%clk 0:02:21]} 14. gxf3 {[%clk 0:02:28]}  Rfd8 {[%clk 0:02:12]} 15. Be3 {[%clk 0:02:23]}  Nh5 {[%clk 0:02:05]} 16. Ne2 {[%clk 0:01:54]}  Bh6 {[%clk 0:02:02]} 17. Rhg1 {[%clk 0:01:06]}  Ne5 {[%clk 0:01:57]} 18. Bb3 {[%clk 0:00:54]}  Nxf3 {[%clk 0:01:51]} 19. Rg4 {[%clk 0:00:43]}  Ne5 {[%clk 0:01:46]} 20. Rg2 {[%clk 0:00:36]}  Nd3+ {[%clk 0:01:42]} 21. Kc2 {[%clk 0:00:30]}  Ndxf4 {[%clk 0:01:35]} 22. Nxf4 {[%clk 0:00:30]}  Bxf4 {[%clk 0:01:31]} 23. Bxf4 {[%clk 0:00:30]}  Nxf4 {[%clk 0:01:31]} 24. Rg3 {[%clk 0:00:28]}  Rxd1 {[%clk 0:01:30]} 25. Kxd1 {[%clk 0:00:28]}  Rd8+ {[%clk 0:01:30]} 26. Kc2 {[%clk 0:00:28]}  Ne2 {[%clk 0:01:27]} 27. Re3 {[%clk 0:00:23]}  Nd4+ {[%clk 0:01:25]} 28. Kc3 {[%clk 0:00:23]}  Nxb3 {[%clk 0:01:25]} 29. Kxb3 {[%clk 0:00:24]}  e5 {[%clk 0:01:16]} 30. Rc3 {[%clk 0:00:22]}  c6 {[%clk 0:01:15]} 31. Re3 {[%clk 0:00:16]}  Rd4 {[%clk 0:01:14]} 32. Kc3 {[%clk 0:00:16]}  f6 {[%clk 0:01:14]} 33. b3 {[%clk 0:00:13]}  Kf7 {[%clk 0:01:14]} 34. b4 {[%clk 0:00:13]}  Ke6 {[%clk 0:01:14]} 35. Kb3 {[%clk 0:00:13]}  f5 {[%clk 0:01:13]} 36. exf5+ {[%clk 0:00:13]}  gxf5 {[%clk 0:01:14]} 37. Ka4 {[%clk 0:00:13]}  c5 {[%clk 0:01:13]} 38. a3 {[%clk 0:00:13]}  cxb4 {[%clk 0:01:10]} 39. axb4 {[%clk 0:00:14]}  b6 {[%clk 0:01:06]} 40. Rc3 {[%clk 0:00:10]}  Kd6 {[%clk 0:01:06]} 41. Rg3 {[%clk 0:00:08]}  a5 {[%clk 0:01:05]} 42. Rg5 {[%clk 0:00:07]}  Rxb4+ {[%clk 0:01:04]} 43. Ka3 {[%clk 0:00:08]}  Rh4 {[%clk 0:01:00]} 44. Rxf5 {[%clk 0:00:08]}  Rxh3+ {[%clk 0:01:00]} 45. Ka4 {[%clk 0:00:08]}  Rh4+ {[%clk 0:00:59]} 46. Kb5 {[%clk 0:00:08]}  Rb4+ {[%clk 0:00:59]} 47. Ka6 {[%clk 0:00:09]}  Kd5 {[%clk 0:00:57]} 48. Rf7 {[%clk 0:00:08]}  h5 {[%clk 0:00:56]} 49. Rh7 {[%clk 0:00:08]}  h4 {[%clk 0:00:56]} 50. Rd7+ {[%clk 0:00:08]}  Ke4 {[%clk 0:00:56]} 51. Rh7 {[%clk 0:00:08]}  Kf3 {[%clk 0:00:56]} 52. Rf7+ {[%clk 0:00:07]}  Kg3 {[%clk 0:00:52]} 53. Rg7+ {[%clk 0:00:07]}  Rg4 {[%clk 0:00:52]} 54. Re7 {[%clk 0:00:06]}  h3 {[%clk 0:00:51]} 55. Rxe5 {[%clk 0:00:05]}  h2 {[%clk 0:00:52]} 56. Rh5 {[%clk 0:00:05]}  Rh4 {[%clk 0:00:50]} 57. Rxh4 {[%clk 0:00:06]}  Kxh4 {[%clk 0:00:50]} 58. Kxb6 {[%clk 0:00:03]}  a4 {[%clk 0:00:48]} 0-1

[Event "January 2 Late 2024"]
[Site "https://www.chess.com"]
[Date "2024.01.02"]
[Round "5"]
[White "Karas, Marek"]
[Black "Bazzano, Sebastian"]
[Result "1-0"]
[Board "155"]
[TimeControl "180+1"]
[WhiteFideId "14928558"]
[BlackFideId "104566"]
[WhiteElo "2465"]
[BlackElo "2303"]
[WhiteTeam "CZE"]
[BlackTeam "ARG"]
[WhiteClock "0:00:04"]
[BlackClock "0:00:00"]

1. e4 {[%clk 0:03:00]}  e6 {[%clk 0:02:48]} 2. d4 {[%clk 0:03:00]}  d5 {[%clk 0:02:47]} 3. e5 {[%clk 0:03:00]}  b6 {[%clk 0:02:47]} 4. c3 {[%clk 0:02:58]}  Qd7 {[%clk 0:02:47]} 5. Nf3 {[%clk 0:02:55]}  Ba6 {[%clk 0:02:47]} 6. Bxa6 {[%clk 0:02:54]}  Nxa6 {[%clk 0:02:46]} 7. O-O {[%clk 0:02:52]}  c5 {[%clk 0:02:46]} 8. Qe2 {[%clk 0:02:50]}  Nc7 {[%clk 0:02:41]} 9. Be3 {[%clk 0:02:32]}  c4 {[%clk 0:02:07]} 10. Nbd2 {[%clk 0:02:21]}  Ne7 {[%clk 0:02:06]} 11. Ne1 {[%clk 0:02:05]}  Nf5 {[%clk 0:02:01]} 12. Nc2 {[%clk 0:02:00]}  Be7 {[%clk 0:01:54]} 13. f4 {[%clk 0:01:55]}  h5 {[%clk 0:01:39]} 14. Bf2 {[%clk 0:01:47]}  Bh4 {[%clk 0:01:25]} 15. Bxh4 {[%clk 0:01:37]}  Nxh4 {[%clk 0:01:24]} 16. Ne3 {[%clk 0:01:37]}  Nf5 {[%clk 0:01:20]} 17. Nxf5 {[%clk 0:01:35]}  exf5 {[%clk 0:01:20]} 18. b3 {[%clk 0:01:33]}  cxb3 {[%clk 0:01:09]} 19. axb3 {[%clk 0:01:32]}  Ne6 {[%clk 0:01:09]} 20. Qe3 {[%clk 0:01:25]}  O-O {[%clk 0:01:01]} 21. Rac1 {[%clk 0:01:12]}  Rfc8 {[%clk 0:00:56]} 22. Qd3 {[%clk 0:01:03]}  g6 {[%clk 0:00:52]} 23. Nf3 {[%clk 0:00:49]}  a5 {[%clk 0:00:49]} 24. g3 {[%clk 0:00:48]}  b5 {[%clk 0:00:48]} 25. c4 {[%clk 0:00:46]}  dxc4 {[%clk 0:00:39]} 26. bxc4 {[%clk 0:00:47]}  bxc4 {[%clk 0:00:35]} 27. Rxc4 {[%clk 0:00:37]}  Qd5 {[%clk 0:00:24]} 28. Ra4 {[%clk 0:00:27]}  Rd8 {[%clk 0:00:08]} 29. Rb1 {[%clk 0:00:23]}  Nc5 {[%clk 0:00:08]} 30. Qa3 {[%clk 0:00:08]}  Nxa4 {[%clk 0:00:07]} 31. Kf2 {[%clk 0:00:09]}  Qc6 {[%clk 0:00:03]} 32. Rc1 {[%clk 0:00:08]}  Qb5 {[%clk 0:00:03]} 33. Rc7 {[%clk 0:00:06]}  Qb2+ {[%clk 0:00:02]} 34. Qxb2 {[%clk 0:00:05]}  Nxb2 {[%clk 0:00:00]} 35. Rc2 {[%clk 0:00:04]} 1-0